Cogmind - Beta 13 @@@ ROGUE MODE // 2024.08.04 @ 13:10:47 Player: petrodigitator Result: Destroyed by as-83528 with Assembled Rifle Performance ------------- Evolutions (1) 500 Regions Visited (4) 800 Robots Destroyed (30) 150 Value Destroyed (432) 432 Prototype IDs (3) 60 Alien Tech Used (0) 0 Bonus (324) 324 TOTAL SCORE: 2266 Bonus ------- High Alert Combat Kills 24 Aligned with FarCom 300 Cogmind --------- Core Integrity 0/400 Matter 300/300 Energy 99/100 System Corruption 10% Temperature Cool (0) Movement Core (100) Ox1 Location -9/Exiles Parts ------- > --- POWER (1) -------- (None) > --- PROPULSION (2) --- (None) > --- UTILITY (4) ------ Lightpack 2.0 > --- WEAPON (2) ------- (None) > --- INVENTORY (40) --- Light Ion Engine Wheel Wheel Medium Storage Unit Medium Storage Unit Structural Scanner Improved Sensor Array Improved Terrain Scanner Seismic Detector Medium Armor Plating Long-range Tractor Beam Plasma Cutter Mining Claw Peak State ------------ > --- POWER ------------ Improved Ion Engine > --- PROPULSION ------- Wheel Wheel > --- UTILITY ---------- Lightpack 2.0 Signal Interpreter > --- WEAPON ----------- Autogun Autogun > --- INVENTORY -------- Light Ion Engine Wheel Medium Storage Unit Medium Storage Unit Structural Scanner Improved Sensor Array Improved Terrain Scanner Seismic Detector Medium Armor Plating Long-range Tractor Beam Plasma Cutter Mining Claw [Rating: 41] Favorites ----------- Power Light Ion Engine Engine Light Ion Engine Propulsion Wheel Leg Aluminum Leg Wheel Wheel Utility Structural Scanner Device Structural Scanner Storage Medium Storage Unit Processor Signal Interpreter Weapon Autogun Energy Gun EM Pulse Gun Ballistic Gun Autogun Special Weapon Mining Laser Slashing Weapon Mining Claw Build | -11 -10 -9 -9 -9 ------- Run | Yrd Mat Mat Min Exi Slots Evolved 2 | . . 2 . . Power . | . . . . . Propulsion . | . . . . . Utility 2 | . . 2 . . Weapon . | . . . . . Parts Attached 35 | 7 22 5 . 1 Power 4 | 1 2 1 . . Engine 4 | 1 2 1 . . Core . | . . . . . Reactor . | . . . . . Propulsion 8 | 2 6 . . . Treads . | . . . . . Leg 2 | 2 . . . . Wheel 6 | . 6 . . . Hover . | . . . . . Flight . | . . . . . Utility 11 | 2 4 4 . 1 Device 5 | 1 2 2 . . Storage 4 | 1 1 1 . 1 Processor 2 | . 1 1 . . Hackware . | . . . . . Protection . | . . . . . Artifact . | . . . . . Weapon 12 | 2 10 . . . Energy Gun 2 | 2 . . . . Energy Cannon . | . . . . . Ballistic Gun 6 | . 6 . . . Ballistic Cannon . | . . . . . Launcher . | . . . . . Special Weapon 3 | . 3 . . . Impact Weapon . | . . . . . Slashing Weapon 1 | . 1 . . . Piercing Weapon . | . . . . . Special Melee Weapon . | . . . . . Unidentified Prototypes 1 | . . . . 1 Parts Lost 8 | . 2 . . 6 Power 1 | . . . . 1 Propulsion 3 | . 1 . . 2 Utility 2 | . 1 . . 1 Weapon 2 | . . . . 2 Highest Loss Streak 6 | . 1 . . 6 To Critical Strikes . | . . . . . Average Slot Usage (%) 95 | . 96 100 100 87 Engine 12 | . 14 11 11 10 Wheel 24 | . 26 22 22 21 Device 14 | . 12 22 22 11 Storage 9 | . 8 11 11 11 Processor 8 | . 5 11 11 10 Ballistic Gun 22 | . 22 22 22 21 Naked Turns . | . . . . . Heaviest Build 25 | 13 16 25 25 25 Greatest Support 32 | 20 32 20 20 20 Greatest Overweight (x) 1 | . 1 1 1 1 Average Overweight (x) . | . . . 1 . Largest Inventory Capacity 40 | 8 8 10 10 40 Average Capacity 11 | 7 6 9 10 23 Most Carried 13 | 7 8 10 10 13 Average Carried 8 | 5 6 9 10 11 Final Capacity 40 | 8 8 10 10 40 Final Carried 13 | 7 8 10 10 13 Class Distribution -------------------- 39% | Mutant 23% | Skirmisher 16% | Scavenger-Skirmisher 11% | Hauler-Mutant 9% | Scavenger-Mutant Dominant Class ---------------- Mutant | -10/Materials Skirmisher | -9/Materials Scavenger-Skirmisher | -9/Mines Scavenger-Skirmisher | -9/Exiles Resources | -11 -10 -9 -9 -9 ----------- Run | Yrd Mat Mat Min Exi Matter Collected 911 | 270 500 141 . . Remotely . | . . . . . Salvage Created 718 | 188 437 93 . . Parts 73 | 15 48 10 . . Haulers Intercepted 1 | . 1 . . . Recyclers Shooed . | . . . . . Parts Field Recycled . | . . . . . Retrieved Matter . | . . . . . Parts Self-Destructed . | . . . . . Prevented . | . . . . . Kills | -11 -10 -9 -9 -9 ------- Run | Yrd Mat Mat Min Exi Combat Hostiles Destroyed 15 | . 12 3 . . Guns 9 | . 6 3 . . AOE 6 | . 6 . . . Classes Destroyed 8 | 2 6 . . . Worker 2 | . 2 . . . Builder 6 | . 5 1 . . Tunneler 4 | 4 . . . . Hauler 1 | . 1 . . . Recycler 1 | 1 . . . . Watcher 1 | . 1 . . . Swarmer 8 | . 6 2 . . Grunt 7 | . 6 1 . . Best Kill Streak 9 | 2 9 3 . . Combat Bots Only 8 | . 8 2 . . Max Kills in Single Turn 6 | 1 6 2 . . Gunslinging . | . . . . . Exploded 6 | . 6 . . . Melee . | . . . . . Uniques/NPCs Destroyed . | . . . . . Combat | -11 -10 -9 -9 -9 -------- Run | Yrd Mat Mat Min Exi Hostile Shots Fired 108 | . 53 1 . 54 Missed 34 | . 18 . . 16 Damage Taken 1386 | . 543 12 . 831 Core 558 | . 150 . . 408 Absorbed by Shields . | . . . . . Core Remaining (%) 70 | 100 40 . . . Volleys Fired 59 | 7 48 4 . . Largest 2 | 2 2 2 . . Hottest 100 | 80 100 46 . . Shots Fired 105 | 14 82 8 . 1 Gun 102 | 14 79 8 . 1 Cannon . | . . . . . Launcher . | . . . . . Special 3 | . 3 . . . Kinetic 88 | . 79 8 . 1 Thermal 3 | . 3 . . . Explosive . | . . . . . Electromagnetic 14 | 14 . . . . Robot Hit Streak 11 | 7 11 1 . 2 Robot Miss Streak 4 | 2 4 3 . . Penetration Max . | . . . . . Secondary Targets 3 | . 3 . . . Max Gunslinging Chain 1 | . 1 . . . Shots Hit Robots 55 | 9 42 3 . 1 Core Hits 34 | 6 24 4 . . Critical Kills 1 | . 1 . . . Critical Parts Destroyed . | . . . . . Critical Strikes 1 | . 1 . . . Destroy 1 | . 1 . . . Melee Attacks 14 | . 14 . . . Impact . | . . . . . Slashing 14 | . 14 . . . Piercing . | . . . . . Sneak Attacks . | . . . . . Combat Hostiles . | . . . . . Follow-up Attacks . | . . . . . Damage Inflicted 1650 | 122 1449 64 . 15 Guns 884 | 122 683 64 . 15 Cannons . | . . . . . Explosions 766 | . 766 . . . Melee . | . . . . . Ramming . | . . . . . Kinetic 762 | . 683 64 . 15 Thermal 766 | . 766 . . . Explosive . | . . . . . Electromagnetic 122 | 122 . . . . Impact . | . . . . . Slashing . | . . . . . Piercing . | . . . . . Highest Corruption 10 | . 5 1 1 10 Average Corruption 2 | . 5 1 1 1 Corruption Purged . | . . . . . Corruption Blocked . | . . . . . Effects 13 | . 8 2 . 3 Message Errors 2 | . 1 1 . . Matter Fused 5 | . 3 1 . 1 Heat Flow Errors 1 | . 1 . . . Energy Discharges 1 | . 1 . . . Data Loss (minor) 2 | . 1 . . 1 Data Loss (major) 1 | . 1 . . . Misfires 1 | . . . . 1 Overload Shots . | . . . . . Overflow Damage 220 | . 220 . . . Projectiles . | . . . . . Explosions 220 | . 220 . . . Melee . | . . . . . Knockbacks . | . . . . . Impact . | . . . . . Kinetic . | . . . . . Secondary . | . . . . . Self-Inflicted Damage . | . . . . . Shots . | . . . . . Rammed . | . . . . . Targets Rammed . | . . . . . Kicked . | . . . . . Crushed . | . . . . . Highest Temperature 205 | 72 205 . . 1 Average Temperature 20 | 30 18 . . 1 Received Heat Transfer 214 | . 174 . . 40 Siege Activations . | . . . . . Robots Corrupted . | . . . . . Combat Hostiles . | . . . . . Parts Fried . | . . . . . Impact Corruptions . | . . . . . Robots Melted . | . . . . . Combat Hostiles . | . . . . . Parts Melted . | . . . . . Heat Transferred 450 | . 450 . . . Parts Sabotaged . | . . . . . Parts Stolen . | . . . . . Parts Stripped . | . . . . . Power Chain Reactions . | . . . . . Alert | -11 -10 -9 -9 -9 ------- Run | Yrd Mat Mat Min Exi Peak Influence 475 | 25 475 293 36 . Initial 133 | . 16 133 36 . Average 201 | 11 264 174 36 . Maximum Alert Level 2 | . 2 1 . . Low Security (%) 54 | 100 24 86 100 . Level 1 38 | . 62 13 . . Level 2 7 | . 12 . . . Level 3 . | . . . . . Level 4 . | . . . . . Level 5 . | . . . . . High Security . | . . . . . Max Security . | . . . . . Squads Dispatched 4 | . 3 1 . . Investigation . | . . . . . Extermination . | . . . . . Reinforcement 4 | . 3 1 . . Assault . | . . . . . Garrison . | . . . . . Intercept . | . . . . . Searches Triggered . | . . . . . Construction Impeded . | . . . . . Haulers Reinforced . | . . . . . Active Scanning Responses . | . . . . . Cargo Convoy Interrupts . | . . . . . Stealth | -11 -10 -9 -9 -9 --------- Run | Yrd Mat Mat Min Exi Distress Signals 3 | . . 3 . . Communications Jammed . | . . . . . Distress Signals . | . . . . . Times Spotted 41 | . 16 7 . 18 Peak Tracking Total 17 | . 2 5 . 17 Tactical Retreats 6 | . 1 4 . 1 Traps | -11 -10 -9 -9 -9 ------- Run | Yrd Mat Mat Min Exi Traps Triggered 1 | . . 1 . . Indirectly . | . . . . . Trap Hack Attempts . | . . . . . Triggered . | . . . . . Disarmed . | . . . . . Reprogrammed . | . . . . . Reused . | . . . . . Traps Extracted . | . . . . . Installed . | . . . . . Triggered . | . . . . . Machines | -11 -10 -9 -9 -9 ---------- Run | Yrd Mat Mat Min Exi Machines Disabled 3 | . 3 . . . Max in Single Turn 3 | . 3 . . . Machines Repaired . | . . . . . Machines Dismantled . | . . . . . Machines Sabotaged . | . . . . . Overloaded Fab Kills . | . . . . . Hacking | -11 -10 -9 -9 -9 --------- Run | Yrd Mat Mat Min Exi Machines Accessed 6 | . 3 1 . 2 Terminals 4 | . 3 1 . . Fabricators . | . . . . . Repair Stations . | . . . . . Recycling Units . | . . . . . Scanalyzers . | . . . . . Garrison Access . | . . . . . Total Hacks 17 | . 9 3 . 5 Successful 8 | . 2 1 . 5 Failed 9 | . 7 2 . . Catastrophic 1 | . 1 . . . Database Lockouts . | . . . . . Manual 3 | . . 2 . 1 Terminals 12 | . 9 3 . . Fabricators . | . . . . . Repair Stations . | . . . . . Recycling Units . | . . . . . Scanalyzers . | . . . . . Garrison Access . | . . . . . Terminal Hacks 8 | . 2 1 . 5 Record 5 | . . . . 5 Prototype ID Bank 1 | . 1 . . . Locate Traps 1 | . 1 . . . Zone Layout 1 | . . 1 . . Fabricator Hacks . | . . . . . Repair Station Hacks . | . . . . . Recycling Unit Hacks . | . . . . . Scanalyzer . | . . . . . Garrison Access Hacks . | . . . . . Unauthorized Hacks . | . . . . . Terminals . | . . . . . Fabricators . | . . . . . Repair Stations . | . . . . . Recycling Units . | . . . . . Scanalyzers . | . . . . . Garrison Access . | . . . . . Data Cores Recovered . | . . . . . Used . | . . . . . Hacking Detections 3 | . 2 1 . . Full Trace Events . | . . . . . Feedback Events . | . . . . . Feedback Blocked . | . . . . . Robot Schematics Acquired . | . . . . . Robots Built . | . . . . . Authchips . | . . . . . Time . | . . . . . Total Robot Build Rating . | . . . . . Part Schematics Acquired . | . . . . . Parts Built . | . . . . . Authchips . | . . . . . Time . | . . . . . Total Part Build Rating . | . . . . . Parts Repaired . | . . . . . Time . | . . . . . Parts Recycled . | . . . . . Recycled Matter . | . . . . . Retrieved Matter . | . . . . . Retrieved Components . | . . . . . Parts Scanalyzed . | . . . . . Part Schematics Acquired . | . . . . . Parts Damaged . | . . . . . Bothacking | -11 -10 -9 -9 -9 ------------ Run | Yrd Mat Mat Min Exi Used RIF Installer . | . . . . . Robots Hacked . | . . . . . Non-combat . | . . . . . Combat . | . . . . . Robot Hacks Applied . | . . . . . Relay Couplers Released . | . . . . . Fabnet Peak Effective % . | . . . . . Robots Rewired . | . . . . . Allies Hacked . | . . . . . Hacks Repelled . | . . . . . Allies | -11 -10 -9 -9 -9 -------- Run | Yrd Mat Mat Min Exi Total Allies . | . . . . . Largest Group . | . . . . . Highest-Rated Group . | . . . . . Highest-Rated Ally . | . . . . . Total Orders . | . . . . . Ally Attacks . | . . . . . Total Damage . | . . . . . Kills . | . . . . . Allies Corrupted . | . . . . . Allies Melted . | . . . . . Intel | -11 -10 -9 -9 -9 ------- Run | Yrd Mat Mat Min Exi Robot Analysis Total . | . . . . . Derelict Logs Recovered . | . . . . . Drone Launches . | . . . . . Drone Recoveries . | . . . . . Exploration | -11 -10 -9 -9 -9 ------------- Run | Yrd Mat Mat Min Exi Turns Passed 1771 | 161 746 406 31 427 Spaces Moved 1387 | 104 545 241 24 473 Core 11 | 3 . . . 8 Treads . | . . . . . Legs 117 | 101 16 . . . Wheels 1259 | . 529 241 24 465 Hover . | . . . . . Flight . | . . . . . Fastest Speed 50 | 50 80 80 95 80 Average Speed 90 | 117 85 94 95 88 Slowest Speed 120 | 120 120 95 95 100 Overloaded Moves . | . . . . . Propulsion Burnouts . | . . . . . Robots Hopped . | . . . . . Cave-ins Triggered 2 | . 2 . . . Exploration Rate (%) 34 | 4 56 22 10 82 Regions Visited 4 Branch Regions 2 Pre-discovered Areas 1 | . . . . 1 Known Exits Taken 2 | . . 1 1 . Unknown Exits Taken 2 | 1 1 . . . Scrap Searched . | . . . . . Spaces Dug 12 | . 12 . . . Terrain Destroyed 42 | . 42 . . . Melee 10 | . 10 . . . Projectile 2 | . 2 . . . AOE 30 | . 30 . . . Terrain Rammed . | . . . . . Walls Destroyed . | . . . . . Machines Disabled . | . . . . . Actions | -11 -10 -9 -9 -9 --------- Run | Yrd Mat Mat Min Exi Total 1780 | 126 723 414 32 485 Wait 222 | . 59 154 9 . Move 1383 | 103 544 240 23 473 Hop . | . . . . . Pick Up 39 | 9 16 6 . 8 Fast Attach 8 | 5 2 . . 1 Attach 6 | 2 2 2 . . Detach . | . . . . . Swap 21 | . 18 3 . . Drop 28 | . 20 5 . 3 Fire 59 | 7 48 4 . . Melee 14 | . 14 . . . Ram . | . . . . . Kick . | . . . . . Crush . | . . . . . Escape Stasis . | . . . . . Rewire . | . . . . . Trap . | . . . . . Miscellaneous . | . . . . . Route ------- -11/Scrapyard -10/Materials -9/Materials (discovered 2 exits: [*Mat] / *Min) -9/Mines -9/Exiles History --------- Turn | Location | Event 40 | -11/Scrapyard | Discovered new exit (range 14) 162 | -11/Scrapyard | Entered Materials 222 | -10/Materials | Crushed by falling debris 327 | -10/Materials | Build established: Mutant 389 | -10/Materials | Destroyed 8 combat bots 643 | -10/Materials | Crushed by falling debris 643 | -10/Materials | Core integrity fell below 50% 744 | -10/Materials | Discovered new exit (range 16) 908 | -10/Materials | Entered another Materials area 908 | -9/Materials | Evolved 2 slots: Utility x2 1162 | -9/Materials | Build established: Skirmisher 1234 | -9/Materials | Discovered new exit (range 15) 1247 | -9/Materials | Met 8R-AWN 1307 | -9/Materials | Discovered new exit (range 8) 1313 | -9/Materials | Identified exit to Mines 1314 | -9/Materials | Entered Mines 1315 | -9/Mines | Followed 8R-AWN into the Mines 1341 | -9/Mines | Discovered new exit (range 5) 1344 | -9/Mines | Identified exit to Exiles 1345 | -9/Mines | Entered Exiles 1370 | -9/Exiles | Welcomed by 8R-AWN 1390 | -9/Exiles | Met EX-HEX 1447 | -9/Exiles | Met EX-DEC 1483 | -9/Exiles | Learned location of Zion (-7) 1512 | -9/Exiles | Met EX-BIN 1522 | -9/Exiles | Aligned with FarCom system 1523 | -9/Exiles | Given EX-Vault access code 1571 | -9/Exiles | Opened EX-Vault 1578 | -9/Exiles | Found Prototype Storage 1578 | -9/Exiles | Identified Lightpack 2.0 1610 | -9/Exiles | Warned to stay clear of 0b10 Research branches 1675 | -9/Exiles | Visited The Gauntlet 1748 | -9/Exiles | Attacked by the Exiles 1770 | -9/Exiles | Core integrity fell below 50% 1770 | -9/Exiles | System corruption reached 10% 1772 | -9/Exiles | Core integrity fell below 20% 1772 | -9/Exiles | Destroyed by as-83528 with Assembled Rifle Last Messages --------------- most prolific Tinkerers out of Zion? "Too smart and will end up getting everyone in trouble one day with crazy experiments"? Whatever! 01748_ System corrupted: FCS attempts to trigger Autogun. 01748_ System corrupted: Autogun misfires. 01748_ EXILES: Hostile robot within lab perimeter. Defensive protocols time, folks! 01761_ Imp. Ion Engine destroyed. 01763_ Autogun destroyed. 01763_ Knocked back. 01764_ Wheel destroyed. 01764_ Signal Interpreter destroyed. 01764_ System corrupted by crushing effect (+1). 01764_ System corrupted by crushing effect (+5). 01765_ EX-BIN: "I just want to science!" 01767_ Knocked back. 01767_ as-98249 destroyed. 01768_ Machine disabled. Map ----- +----------------------------------------------------+ | ???????????????????????## ""##?????###" """ | | ???????????????????????##"" ""##????####" #### | | ???????????? #######??#### ###########"" #### | | ???????????? ############ ##########"" ###? | | ??????????? """#####X# #"###""""""" #### | | ??????????? """""" " "" ### | | ??????????# "" """ " ## | | ??????????## " " | | ??????????#### | | ???????????##### | | ????????????##### | | ??????????????#### | | ???????????????####" | | ????????????????###""" """""" | | ????????????????###" ######""" | | ???????????????###"" ""###########""" | | ???????????????###""" """####??#######"" | | ???????????????##""" """####???????###"" | | ???????????????##""" ""##############"" | | ???????????????##"" ##############""" | | ???????????????##""" ##aa ####""" | | ???????????????##"" t """" | | ???????????????###"" | | ???????????????###""" | | ????????????????### | | ????????????????###" @ a " "" | | ?????????????????##"""" a ""## ##""" | | ?????????????????##" ""#### ###### | | ?????????????????##" a """"##### ###### | | ?????????????????##""" c """##### ###### | | ?????????????????### a%ac ""#####! "!##? | | ?????????????????###"" % """######" !##? | | ??????????????????###""" % % ####?##" "##? | | ??????????????????####"""" za ####??##!!""!"##? | | ???????????????????##### c ###???##########? | | ????????????????????######## z ###????##########? | | ??????????????????????######; ###??????????????? | | ??????????????????????????### % ##???????????????? | | ???????????????????????????##z ##???????????????? | | ???????????????????????????##% ##???????????????? | | ###????????????????###?????## ##???????????????? | | """#?????"""""???#"""""?????# ##???????????????? | | ""#???"""""""????"""""""???# ##???????????????? | | "#??"""""" "#??#" """"#??# ##???????????????? | | ""#""#""" """????"" """???# ##???????????????? | | ""#""#"" ""????"" ""???# ##???????????????? | | "###""###"""########"""###### ########?####????? | | """"""" """""""" """""" """""""#"""""#???? | | """""" """"""" "#"" ""#???? | | " ""#???? | +----------------------------------------------------+ Best States ------------- Heat Dissipation 28 Energy Generation 12 Energy Capacity 265 Matter Stores 300 Matter Capacity 300 Sight Range 16 Robot Scan Range 15 Terrain Scan Range 16 Terrain Scan Density 85 Evasion (%) 55 Item Schematics ----------------- None Robot Schematics ------------------ None Fabricated ------------ Nothing Alien Tech Used ----------------- None Achievements -------------- Quick And Dirty Challenges ------------ None Game ------ Seed WeightLegShielding Manual? 0 Play Time 00:42:40 Cumulative 70.3 hours Start 2024.08.04 @ 12:23:49 End 2024.08.04 @ 13:10:47 Sessions 1 Manual Loads 0 Difficulty Rogue Special Mode None Game No. 40 Rogue 38 Adventurer 0 Explorer 2 Win Type - Total 1 Types 1/0/0/0/0/0/0/0/0 Lore% 34 Gallery% 43 Achievement% 36 Wizard Run 0 Options --------- Layout 2 ASCII 0 Keyboard 0 Movement Mouse Keybinds 0 Fullscreen 1 Font 24/Smallcaps Map View 50x44 Zoom Use 0% Tactical HUD 1 Map Filters NONE Filters NONE Steam 1 RUN: d1577523-0e2b-4f7e-a812-68fef2ab694c